[Event "Titled Tuesday Blitz April 19 Late 2022"]
[White "Rosen, Eric"]
[Black "Kanyamarala, Trisha"]
[WhiteFideId "2032562"]
[BlackFideId "45004722"]
[WhiteElo "2362"]
[BlackElo "2079"]
[Result "0-1"]
[Round "04"]
[TimeControl "180+1"]
[Date "2022.04.19"]
[WhiteClock "0:00:05"]
[BlackClock "0:00:03"]

1. e4 {[%clk 0:03:00]}  c5 {[%clk 0:02:59]} 2. Nf3 {[%clk 0:02:58]}  d6 {[%clk 0:03:00]} 3. Nc3 {[%clk 0:02:58]}  Nc6 {[%clk 0:02:58]} 4. Bc4 {[%clk 0:02:52]}  e6 {[%clk 0:02:55]} 5. O-O {[%clk 0:02:45]}  Nf6 {[%clk 0:02:54]} 6. Re1 {[%clk 0:02:44]}  Be7 {[%clk 0:02:53]} 7. d3 {[%clk 0:02:38]}  O-O {[%clk 0:02:53]} 8. a3 {[%clk 0:02:35]}  d5 {[%clk 0:02:52]} 9. Ba2 {[%clk 0:02:35]}  a6 {[%clk 0:02:47]} 10. h3 {[%clk 0:02:32]}  b5 {[%clk 0:02:45]} 11. Bf4 {[%clk 0:02:29]}  b4 {[%clk 0:02:38]} 12. axb4 {[%clk 0:02:12]}  cxb4 {[%clk 0:02:39]} 13. Na4 {[%clk 0:02:09]}  a5 {[%clk 0:02:28]} 14. e5 {[%clk 0:02:09]}  Nd7 {[%clk 0:02:26]} 15. d4 {[%clk 0:02:07]}  Ba6 {[%clk 0:02:24]} 16. c3 {[%clk 0:01:56]}  Bb5 {[%clk 0:02:21]} 17. Bb1 {[%clk 0:01:54]}  Nb6 {[%clk 0:02:11]} 18. Nxb6 {[%clk 0:01:43]}  Qxb6 {[%clk 0:02:12]} 19. Ng5 {[%clk 0:01:44]}  h6 {[%clk 0:01:28]} 20. Nh7 {[%clk 0:01:44]}  Rfb8 {[%clk 0:01:23]} 21. Bxh6 {[%clk 0:00:55]}  gxh6 {[%clk 0:01:17]} 22. Nf6+ {[%clk 0:00:46]}  Bxf6 {[%clk 0:01:13]} 23. exf6 {[%clk 0:00:46]}  Kf8 {[%clk 0:01:11]} 24. Qg4 {[%clk 0:00:46]}  Nd8 {[%clk 0:00:52]} 25. Qg7+ {[%clk 0:00:31]}  Ke8 {[%clk 0:00:52]} 26. Bg6 {[%clk 0:00:32]}  Qb7 {[%clk 0:00:19]} 27. Qg8+ {[%clk 0:00:30]}  Kd7 {[%clk 0:00:19]} 28. Bxf7 {[%clk 0:00:31]}  Kc6 {[%clk 0:00:16]} 29. Bxe6 {[%clk 0:00:19]}  Kb6 {[%clk 0:00:16]} 30. Bxd5 {[%clk 0:00:17]}  Bc6 {[%clk 0:00:15]} 31. Bxc6 {[%clk 0:00:08]}  Nxc6 {[%clk 0:00:16]} 32. Qe6 {[%clk 0:00:06]}  Re8 {[%clk 0:00:16]} 33. Qxe8 {[%clk 0:00:05]}  Rxe8 {[%clk 0:00:17]} 34. Rxe8 {[%clk 0:00:06]}  Qf7 {[%clk 0:00:15]} 35. Rae1 {[%clk 0:00:05]}  Qxf6 {[%clk 0:00:15]} 36. d5 {[%clk 0:00:05]}  bxc3 {[%clk 0:00:11]} 37. bxc3 {[%clk 0:00:05]}  Nd8 {[%clk 0:00:09]} 38. c4 {[%clk 0:00:03]}  Kc5 {[%clk 0:00:09]} 39. R8e4 {[%clk 0:00:02]}  a4 {[%clk 0:00:09]} 40. f4 {[%clk 0:00:01]}  a3 {[%clk 0:00:09]} 41. R4e3 {[%clk 0:00:02]}  a2 {[%clk 0:00:09]} 42. R3e2 {[%clk 0:00:02]}  a1=Q {[%clk 0:00:09]} 43. Rxa1 {[%clk 0:00:02]}  Qxa1+ {[%clk 0:00:10]} 44. Kf2 {[%clk 0:00:03]}  Qd4+ {[%clk 0:00:10]} 45. Kf3 {[%clk 0:00:03]}  Qxc4 {[%clk 0:00:09]} 46. Kg3 {[%clk 0:00:03]}  Qxe2 {[%clk 0:00:09]} 47. Kh2 {[%clk 0:00:03]}  Nf7 {[%clk 0:00:09]} 48. f5 {[%clk 0:00:03]}  Nd6 {[%clk 0:00:09]} 49. Kg3 {[%clk 0:00:03]}  Qe5+ {[%clk 0:00:08]} 50. Kh4 {[%clk 0:00:03]}  Nxf5+ {[%clk 0:00:07]} 51. Kh5 {[%clk 0:00:03]}  Nd4+ {[%clk 0:00:07]} 52. Kxh6 {[%clk 0:00:03]}  Qg3 {[%clk 0:00:07]} 53. h4 {[%clk 0:00:03]}  Nf5+ {[%clk 0:00:07]} 54. Kh5 {[%clk 0:00:03]}  Ne7 {[%clk 0:00:04]} 55. d6 {[%clk 0:00:03]}  Kxd6 {[%clk 0:00:04]} 56. Kh6 {[%clk 0:00:04]}  Qxg2 {[%clk 0:00:04]} 57. Kh7 {[%clk 0:00:04]}  Nf5 {[%clk 0:00:03]} 58. Kh8 {[%clk 0:00:05]}  Qg7# {[%clk 0:00:03]} 0-1


[Site "https://www.chess.com"]

[Event "Titled Tuesday Blitz April 19 Late 2022"]
[White "Rustemov, Alexander"]
[Black "Jessel, Stephen"]
[WhiteFideId "4119002"]
[BlackFideId "628859"]
[WhiteElo "2723"]
[BlackElo "2534"]
[Result "1-0"]
[Round "04"]
[TimeControl "180+1"]
[Date "2022.04.19"]
[WhiteClock "0:00:19"]
[BlackClock "0:00:07"]

1. d4 {[%clk 0:03:00]}  e6 {[%clk 0:03:00]} 2. c4 {[%clk 0:03:01]}  b6 {[%clk 0:03:00]} 3. e4 {[%clk 0:03:00]}  Bb7 {[%clk 0:03:00]} 4. Bd3 {[%clk 0:03:00]}  Bb4+ {[%clk 0:02:59]} 5. Bd2 {[%clk 0:02:57]}  Bxd2+ {[%clk 0:03:00]} 6. Qxd2 {[%clk 0:02:57]}  f5 {[%clk 0:03:00]} 7. Nc3 {[%clk 0:02:50]}  Nf6 {[%clk 0:02:59]} 8. f3 {[%clk 0:02:07]}  Nc6 {[%clk 0:02:56]} 9. exf5 {[%clk 0:02:04]}  Nxd4 {[%clk 0:02:54]} 10. Qe3 {[%clk 0:02:00]}  c5 {[%clk 0:02:49]} 11. Nge2 {[%clk 0:02:00]}  Nxe2 {[%clk 0:02:47]} 12. Qxe2 {[%clk 0:01:57]}  O-O {[%clk 0:02:46]} 13. fxe6 {[%clk 0:01:47]}  Re8 {[%clk 0:02:44]} 14. O-O-O {[%clk 0:01:46]}  Rxe6 {[%clk 0:02:37]} 15. Qd2 {[%clk 0:01:43]}  Bc6 {[%clk 0:02:33]} 16. Rhe1 {[%clk 0:01:39]}  Rxe1 {[%clk 0:02:28]} 17. Qxe1 {[%clk 0:01:37]}  Qe8 {[%clk 0:02:22]} 18. Qxe8+ {[%clk 0:01:32]}  Rxe8 {[%clk 0:02:21]} 19. Kd2 {[%clk 0:01:31]}  g5 {[%clk 0:02:12]} 20. Rf1 {[%clk 0:01:20]}  Kg7 {[%clk 0:02:10]} 21. g3 {[%clk 0:01:18]}  d5 {[%clk 0:02:06]} 22. cxd5 {[%clk 0:01:05]}  Nxd5 {[%clk 0:02:05]} 23. Nxd5 {[%clk 0:01:04]}  Bxd5 {[%clk 0:02:05]} 24. a3 {[%clk 0:01:05]}  Rd8 {[%clk 0:01:27]} 25. Ke3 {[%clk 0:01:00]}  Re8+ {[%clk 0:01:23]} 26. Be4 {[%clk 0:00:59]}  Re7 {[%clk 0:01:05]} 27. Rd1 {[%clk 0:00:52]}  Bb7 {[%clk 0:00:59]} 28. h3 {[%clk 0:00:41]}  h5 {[%clk 0:00:58]} 29. g4 {[%clk 0:00:38]}  hxg4 {[%clk 0:00:32]} 30. hxg4 {[%clk 0:00:39]}  Bxe4 {[%clk 0:00:11]} 31. fxe4 {[%clk 0:00:40]}  Kf6 {[%clk 0:00:12]} 32. Rd6+ {[%clk 0:00:34]}  Re6 {[%clk 0:00:12]} 33. Rd7 {[%clk 0:00:34]}  Re7 {[%clk 0:00:13]} 34. Rd5 {[%clk 0:00:26]}  Re5 {[%clk 0:00:13]} 35. Rd8 {[%clk 0:00:26]}  Re7 {[%clk 0:00:06]} 36. a4 {[%clk 0:00:25]}  Rh7 {[%clk 0:00:04]} 37. Kd3 {[%clk 0:00:24]}  Rh4 {[%clk 0:00:03]} 38. Rd6+ {[%clk 0:00:21]}  Kf7 {[%clk 0:00:02]} 39. Rd7+ {[%clk 0:00:21]}  Kf6 {[%clk 0:00:03]} 40. Rxa7 {[%clk 0:00:21]}  Rxg4 {[%clk 0:00:04]} 41. Rb7 {[%clk 0:00:21]}  Ke5 {[%clk 0:00:04]} 42. Rxb6 {[%clk 0:00:21]}  Rg3+ {[%clk 0:00:04]} 43. Kc4 {[%clk 0:00:21]}  Kxe4 {[%clk 0:00:05]} 44. Kxc5 {[%clk 0:00:19]}  Rg1 {[%clk 0:00:05]} 45. b4 {[%clk 0:00:19]}  Ra1 {[%clk 0:00:05]} 46. a5 {[%clk 0:00:19]}  g4 {[%clk 0:00:06]} 47. Rg6 {[%clk 0:00:18]}  Kf5 {[%clk 0:00:06]} 48. Rg8 {[%clk 0:00:18]}  Rc1+ {[%clk 0:00:06]} 49. Kb6 {[%clk 0:00:18]}  Kf4 {[%clk 0:00:06]} 50. b5 {[%clk 0:00:18]}  Kf3 {[%clk 0:00:06]} 51. a6 {[%clk 0:00:19]}  g3 {[%clk 0:00:07]} 52. a7 {[%clk 0:00:19]}  Ra1 {[%clk 0:00:07]} 53. a8=Q+ {[%clk 0:00:19]} 1-0


[Site "https://www.chess.com"]

[Event "Titled Tuesday Blitz April 19 Late 2022"]
[White "Rytenko, Vsevolod"]
[Black "Urbina Perez, Juan Antonio"]
[WhiteFideId "14133040"]
[BlackFideId "2217368"]
[WhiteElo "2120"]
[BlackElo "2192"]
[Result "1-0"]
[Round "04"]
[TimeControl "180+1"]
[Date "2022.04.19"]
[WhiteClock "0:01:52"]
[BlackClock "0:01:02"]

1. d4 {[%clk 0:03:00]}  d5 {[%clk 0:02:59]} 2. c4 {[%clk 0:03:00]}  c6 {[%clk 0:02:59]} 3. Nc3 {[%clk 0:03:00]}  Nf6 {[%clk 0:03:00]} 4. Nf3 {[%clk 0:03:00]}  a6 {[%clk 0:03:00]} 5. e3 {[%clk 0:03:01]}  Bf5 {[%clk 0:02:59]} 6. Qb3 {[%clk 0:03:00]}  Ra7 {[%clk 0:02:58]} 7. a4 {[%clk 0:02:53]}  e6 {[%clk 0:02:56]} 8. Nh4 {[%clk 0:02:53]}  Bg6 {[%clk 0:02:55]} 9. Nxg6 {[%clk 0:02:53]}  hxg6 {[%clk 0:02:56]} 10. Be2 {[%clk 0:02:51]}  Bd6 {[%clk 0:02:56]} 11. h3 {[%clk 0:02:51]}  Nbd7 {[%clk 0:02:55]} 12. c5 {[%clk 0:02:50]}  Bc7 {[%clk 0:02:54]} 13. Qc2 {[%clk 0:02:50]}  e5 {[%clk 0:02:52]} 14. b4 {[%clk 0:02:49]}  Qe7 {[%clk 0:02:49]} 15. Bb2 {[%clk 0:02:48]}  exd4 {[%clk 0:02:49]} 16. exd4 {[%clk 0:02:49]}  Ne4 {[%clk 0:02:34]} 17. Nxe4 {[%clk 0:02:48]}  Qxe4 {[%clk 0:02:35]} 18. Qxe4+ {[%clk 0:02:47]}  dxe4 {[%clk 0:02:35]} 19. Kd2 {[%clk 0:02:47]}  O-O {[%clk 0:02:27]} 20. Kc2 {[%clk 0:02:45]}  Nf6 {[%clk 0:02:25]} 21. b5 {[%clk 0:02:42]}  Raa8 {[%clk 0:02:17]} 22. Rhe1 {[%clk 0:02:36]}  Nd5 {[%clk 0:02:08]} 23. Bc4 {[%clk 0:02:34]}  Rfe8 {[%clk 0:02:00]} 24. Re2 {[%clk 0:02:28]}  Nf4 {[%clk 0:01:56]} 25. Re3 {[%clk 0:02:28]}  Nxg2 {[%clk 0:01:52]} 26. Rb3 {[%clk 0:02:28]}  axb5 {[%clk 0:01:50]} 27. axb5 {[%clk 0:02:28]}  Rxa1 {[%clk 0:01:51]} 28. Bxa1 {[%clk 0:02:29]}  e3 {[%clk 0:01:50]} 29. fxe3 {[%clk 0:02:23]}  Nxe3+ {[%clk 0:01:51]} 30. Kd3 {[%clk 0:02:22]}  Nf5 {[%clk 0:01:32]} 31. bxc6 {[%clk 0:02:21]}  Re3+ {[%clk 0:01:28]} 32. Kc2 {[%clk 0:02:15]}  Rxb3 {[%clk 0:01:27]} 33. Bxb3 {[%clk 0:02:03]}  bxc6 {[%clk 0:01:27]} 34. Ba4 {[%clk 0:02:02]}  Ne7 {[%clk 0:01:22]} 35. Kd3 {[%clk 0:02:00]}  Kf8 {[%clk 0:01:23]} 36. Bc3 {[%clk 0:01:54]}  Ke8 {[%clk 0:01:22]} 37. d5 {[%clk 0:01:53]}  Bf4 {[%clk 0:01:12]} 38. d6 {[%clk 0:01:52]}  Nf5 {[%clk 0:01:08]} 39. Bxc6+ {[%clk 0:01:52]}  Kd8 {[%clk 0:01:02]} 40. Ba5+ {[%clk 0:01:52]} 1-0


[Site "https://www.chess.com"]

[Event "Titled Tuesday Blitz April 19 Late 2022"]
[White "Salem, A.R. Saleh"]
[Black "Lin, Dachey"]
[WhiteFideId "9301348"]
[BlackFideId "2029650"]
[WhiteElo "2657"]
[BlackElo "2313"]
[Result "1/2-1/2"]
[Round "04"]
[TimeControl "180+1"]
[Date "2022.04.19"]
[WhiteClock "0:00:04"]
[BlackClock "0:00:13"]

1. Nf3 {[%clk 0:03:00]}  g6 {[%clk 0:03:00]} 2. e4 {[%clk 0:03:00]}  Bg7 {[%clk 0:03:01]} 3. d4 {[%clk 0:03:00]}  c6 {[%clk 0:03:01]} 4. h3 {[%clk 0:02:53]}  d5 {[%clk 0:03:02]} 5. Nbd2 {[%clk 0:02:52]}  dxe4 {[%clk 0:03:02]} 6. Nxe4 {[%clk 0:02:53]}  Nd7 {[%clk 0:03:02]} 7. Be2 {[%clk 0:02:46]}  Ngf6 {[%clk 0:03:02]} 8. Ng3 {[%clk 0:02:42]}  O-O {[%clk 0:03:02]} 9. O-O {[%clk 0:02:41]}  Qc7 {[%clk 0:02:59]} 10. Re1 {[%clk 0:02:41]}  e5 {[%clk 0:02:53]} 11. c3 {[%clk 0:02:38]}  exd4 {[%clk 0:02:35]} 12. Qxd4 {[%clk 0:02:39]}  Nh5 {[%clk 0:02:30]} 13. Qh4 {[%clk 0:02:28]}  Nxg3 {[%clk 0:02:28]} 14. fxg3 {[%clk 0:02:20]}  Re8 {[%clk 0:02:23]} 15. Bf4 {[%clk 0:02:17]}  Qb6+ {[%clk 0:02:22]} 16. Kh2 {[%clk 0:02:18]}  Nf6 {[%clk 0:02:18]} 17. Bc4 {[%clk 0:02:15]}  Be6 {[%clk 0:01:32]} 18. Rxe6 {[%clk 0:02:07]}  fxe6 {[%clk 0:00:51]} 19. Ng5 {[%clk 0:02:06]}  Qxb2 {[%clk 0:00:50]} 20. Be5 {[%clk 0:00:26]}  h6 {[%clk 0:00:04]} 21. Nxe6 {[%clk 0:00:24]}  Nd5 {[%clk 0:00:02]} 22. Bxg7 {[%clk 0:00:20]}  Rxe6 {[%clk 0:00:02]} 23. Qxh6 {[%clk 0:00:16]}  Qxa1 {[%clk 0:00:02]} 24. Bd4 {[%clk 0:00:16]}  Re7 {[%clk 0:00:01]} 25. Qxg6+ {[%clk 0:00:06]}  Kf8 {[%clk 0:00:02]} 26. Bc5 {[%clk 0:00:04]}  Qe1 {[%clk 0:00:02]} 27. Bxd5 {[%clk 0:00:03]}  cxd5 {[%clk 0:00:02]} 28. Qf6+ {[%clk 0:00:03]}  Ke8 {[%clk 0:00:03]} 29. Qh8+ {[%clk 0:00:04]}  Kd7 {[%clk 0:00:04]} 30. Qxa8 {[%clk 0:00:04]}  Rf7 {[%clk 0:00:03]} 31. Qxb7+ {[%clk 0:00:04]}  Ke6 {[%clk 0:00:03]} 32. Qc6+ {[%clk 0:00:04]}  Kf5 {[%clk 0:00:03]} 33. Qxd5+ {[%clk 0:00:03]}  Kg6 {[%clk 0:00:04]} 34. Qd3+ {[%clk 0:00:03]}  Kg7 {[%clk 0:00:03]} 35. Bd4+ {[%clk 0:00:04]}  Kf8 {[%clk 0:00:04]} 36. Bc5+ {[%clk 0:00:04]}  Kg7 {[%clk 0:00:05]} 37. Bd4+ {[%clk 0:00:04]}  Kf8 {[%clk 0:00:05]} 38. Qg6 {[%clk 0:00:03]}  Ke8 {[%clk 0:00:04]} 39. Bc5 {[%clk 0:00:03]}  Qf1 {[%clk 0:00:04]} 40. Qe6+ {[%clk 0:00:03]}  Kd8 {[%clk 0:00:04]} 41. Bd4 {[%clk 0:00:03]}  Qf5 {[%clk 0:00:04]} 42. Qd6+ {[%clk 0:00:03]}  Qd7 {[%clk 0:00:03]} 43. Qb8+ {[%clk 0:00:03]}  Ke7 {[%clk 0:00:04]} 44. Qe5+ {[%clk 0:00:04]}  Kd8 {[%clk 0:00:04]} 45. h4 {[%clk 0:00:04]}  Rf1 {[%clk 0:00:03]} 46. Qb8+ {[%clk 0:00:04]}  Ke7 {[%clk 0:00:04]} 47. Qe5+ {[%clk 0:00:04]}  Kd8 {[%clk 0:00:04]} 48. Qe2 {[%clk 0:00:04]}  Qf5 {[%clk 0:00:04]} 49. h5 {[%clk 0:00:03]}  Qb1 {[%clk 0:00:05]} 50. Kh3 {[%clk 0:00:03]}  Qf5+ {[%clk 0:00:04]} 51. g4 {[%clk 0:00:03]}  Qf4 {[%clk 0:00:05]} 52. g3 {[%clk 0:00:01]}  Qc1 {[%clk 0:00:04]} 53. Kg2 {[%clk 0:00:01]}  Rd1 {[%clk 0:00:04]} 54. Bf2 {[%clk 0:00:02]}  Rd2 {[%clk 0:00:05]} 55. Qf3 {[%clk 0:00:02]}  Rd7 {[%clk 0:00:05]} 56. Qf4 {[%clk 0:00:01]}  Qxc3 {[%clk 0:00:04]} 57. h6 {[%clk 0:00:02]}  Qc6+ {[%clk 0:00:05]} 58. Qf3 {[%clk 0:00:02]}  Qxh6 {[%clk 0:00:05]} 59. Qa8+ {[%clk 0:00:01]}  Ke7 {[%clk 0:00:06]} 60. Bc5+ {[%clk 0:00:02]}  Kf7 {[%clk 0:00:06]} 61. Qf3+ {[%clk 0:00:02]}  Qf6 {[%clk 0:00:07]} 62. Qb3+ {[%clk 0:00:02]}  Qe6 {[%clk 0:00:07]} 63. Qf3+ {[%clk 0:00:02]}  Kg7 {[%clk 0:00:07]} 64. Be3 {[%clk 0:00:02]}  Qd5 {[%clk 0:00:08]} 65. Qxd5 {[%clk 0:00:01]}  Rxd5 {[%clk 0:00:08]} 66. Bxa7 {[%clk 0:00:02]}  Rd2+ {[%clk 0:00:09]} 67. Kf3 {[%clk 0:00:02]}  Rxa2 {[%clk 0:00:10]} 68. Bd4+ {[%clk 0:00:02]}  Kg6 {[%clk 0:00:10]} 69. Be5 {[%clk 0:00:03]}  Ra4 {[%clk 0:00:11]} 70. Bf4 {[%clk 0:00:03]}  Ra3+ {[%clk 0:00:11]} 71. Kg2 {[%clk 0:00:03]}  Ra4 {[%clk 0:00:12]} 72. Kf3 {[%clk 0:00:04]}  Ra2 {[%clk 0:00:13]} 73. Be3 {[%clk 0:00:04]}  Ra4 {[%clk 0:00:13]} 74. Bf4 {[%clk 0:00:04]} 1/2-1/2


[Site "https://www.chess.com"]

[Event "Titled Tuesday Blitz April 19 Late 2022"]
[White "Santiago, Yago De Moura"]
[Black "Saldano Dayer, Horacio"]
[WhiteFideId "2103877"]
[BlackFideId "103411"]
[WhiteElo "2475"]
[BlackElo "2419"]
[Result "0-1"]
[Round "04"]
[TimeControl "180+1"]
[Date "2022.04.19"]
[WhiteClock "0:00:27"]
[BlackClock "0:00:26"]

1. e4 {[%clk 0:03:00]}  d6 {[%clk 0:02:59]} 2. d4 {[%clk 0:03:00]}  Nf6 {[%clk 0:02:59]} 3. Nc3 {[%clk 0:03:00]}  e5 {[%clk 0:02:59]} 4. Nf3 {[%clk 0:02:59]}  Nbd7 {[%clk 0:02:58]} 5. Bc4 {[%clk 0:02:59]}  Be7 {[%clk 0:02:58]} 6. O-O {[%clk 0:02:59]}  Nb6 {[%clk 0:02:57]} 7. Bb3 {[%clk 0:02:56]}  exd4 {[%clk 0:02:57]} 8. Qxd4 {[%clk 0:02:54]}  O-O {[%clk 0:02:56]} 9. Bg5 {[%clk 0:02:51]}  a5 {[%clk 0:02:54]} 10. a4 {[%clk 0:02:50]}  Nfd7 {[%clk 0:02:53]} 11. Be3 {[%clk 0:02:39]}  Nc5 {[%clk 0:02:46]} 12. Ba2 {[%clk 0:02:39]}  Bd7 {[%clk 0:02:28]} 13. b3 {[%clk 0:02:06]}  Bf6 {[%clk 0:02:17]} 14. e5 {[%clk 0:02:05]}  Ne6 {[%clk 0:02:17]} 15. Qe4 {[%clk 0:01:55]}  Bc6 {[%clk 0:02:11]} 16. Qf5 {[%clk 0:01:55]}  dxe5 {[%clk 0:01:41]} 17. Nxe5 {[%clk 0:01:54]}  g6 {[%clk 0:01:24]} 18. Nxc6 {[%clk 0:01:31]}  bxc6 {[%clk 0:01:25]} 19. Qh3 {[%clk 0:01:30]}  Bxc3 {[%clk 0:01:23]} 20. Bxb6 {[%clk 0:01:19]}  Bxa1 {[%clk 0:01:21]} 21. Be3 {[%clk 0:01:02]}  Bd4 {[%clk 0:01:17]} 22. Bh6 {[%clk 0:01:02]}  Bg7 {[%clk 0:01:16]} 23. Bc1 {[%clk 0:01:01]}  Qd4 {[%clk 0:01:12]} 24. b4 {[%clk 0:01:00]}  axb4 {[%clk 0:01:03]} 25. Bb3 {[%clk 0:00:57]}  Nc5 {[%clk 0:01:01]} 26. Be3 {[%clk 0:00:57]}  Qd6 {[%clk 0:00:58]} 27. Bc4 {[%clk 0:00:53]}  h5 {[%clk 0:00:53]} 28. Qf3 {[%clk 0:00:52]}  Nxa4 {[%clk 0:00:50]} 29. h3 {[%clk 0:00:50]}  Nc3 {[%clk 0:00:47]} 30. g4 {[%clk 0:00:49]}  hxg4 {[%clk 0:00:46]} 31. hxg4 {[%clk 0:00:50]}  Nd5 {[%clk 0:00:47]} 32. Bc1 {[%clk 0:00:44]}  Ra3 {[%clk 0:00:45]} 33. Bb3 {[%clk 0:00:42]}  Qf6 {[%clk 0:00:36]} 34. Qg3 {[%clk 0:00:37]}  Ra1 {[%clk 0:00:35]} 35. Kg2 {[%clk 0:00:35]}  Rxc1 {[%clk 0:00:32]} 36. Rxc1 {[%clk 0:00:35]}  Qf4 {[%clk 0:00:32]} 37. Qxf4 {[%clk 0:00:32]}  Nxf4+ {[%clk 0:00:32]} 38. Kf3 {[%clk 0:00:32]}  g5 {[%clk 0:00:32]} 39. Rd1 {[%clk 0:00:31]}  Be5 {[%clk 0:00:31]} 40. Rd7 {[%clk 0:00:31]}  Bd6 {[%clk 0:00:31]} 41. Ba4 {[%clk 0:00:28]}  c5 {[%clk 0:00:28]} 42. Bb3 {[%clk 0:00:28]}  Kg7 {[%clk 0:00:28]} 43. Ke4 {[%clk 0:00:28]}  Kf6 {[%clk 0:00:27]} 44. f3 {[%clk 0:00:27]}  Re8+ {[%clk 0:00:26]} 0-1


[Site "https://www.chess.com"]

[Event "Titled Tuesday Blitz April 19 Late 2022"]
[White "Siddharth, Jagadeesh"]
[Black "Migot, Tangi"]
[WhiteFideId "5818320"]
[BlackFideId "662445"]
[WhiteElo "2709"]
[BlackElo "2534"]
[Result "0-1"]
[Round "04"]
[TimeControl "180+1"]
[Date "2022.04.19"]
[WhiteClock "0:00:08"]
[BlackClock "0:00:08"]

1. d4 {[%clk 0:03:00]}  Nf6 {[%clk 0:02:59]} 2. Nc3 {[%clk 0:03:01]}  d5 {[%clk 0:02:59]} 3. Bf4 {[%clk 0:03:01]}  Bf5 {[%clk 0:02:57]} 4. e3 {[%clk 0:02:59]}  c6 {[%clk 0:02:57]} 5. f3 {[%clk 0:02:59]}  e6 {[%clk 0:02:55]} 6. g4 {[%clk 0:02:59]}  Bg6 {[%clk 0:02:55]} 7. h4 {[%clk 0:02:59]}  h5 {[%clk 0:02:55]} 8. g5 {[%clk 0:02:59]}  Ng8 {[%clk 0:02:55]} 9. Qd2 {[%clk 0:02:53]}  Nd7 {[%clk 0:02:52]} 10. a3 {[%clk 0:02:52]}  b5 {[%clk 0:02:52]} 11. Nh3 {[%clk 0:02:48]}  Ne7 {[%clk 0:02:49]} 12. Kf2 {[%clk 0:02:43]}  Nf5 {[%clk 0:02:46]} 13. Ng1 {[%clk 0:02:20]}  a5 {[%clk 0:02:42]} 14. Bd3 {[%clk 0:02:18]}  b4 {[%clk 0:02:39]} 15. Nce2 {[%clk 0:02:18]}  c5 {[%clk 0:02:22]} 16. Bb5 {[%clk 0:02:18]}  cxd4 {[%clk 0:02:17]} 17. exd4 {[%clk 0:02:15]}  bxa3 {[%clk 0:02:14]} 18. bxa3 {[%clk 0:02:16]}  Be7 {[%clk 0:02:13]} 19. c3 {[%clk 0:02:11]}  O-O {[%clk 0:02:13]} 20. a4 {[%clk 0:02:08]}  Nb6 {[%clk 0:02:11]} 21. Be5 {[%clk 0:02:02]}  Rc8 {[%clk 0:02:07]} 22. Nf4 {[%clk 0:02:00]}  Nc4 {[%clk 0:02:05]} 23. Bxc4 {[%clk 0:01:49]}  Rxc4 {[%clk 0:02:06]} 24. Nge2 {[%clk 0:01:49]}  Qd7 {[%clk 0:02:03]} 25. Qa2 {[%clk 0:00:54]}  Rfc8 {[%clk 0:01:58]} 26. Qb3 {[%clk 0:00:46]}  Bd6 {[%clk 0:01:57]} 27. Bxd6 {[%clk 0:00:39]}  Nxd6 {[%clk 0:01:51]} 28. Rhc1 {[%clk 0:00:25]}  Nf5 {[%clk 0:01:48]} 29. Rh1 {[%clk 0:00:20]}  Ne7 {[%clk 0:01:47]} 30. Ra2 {[%clk 0:00:18]}  Qd6 {[%clk 0:01:44]} 31. Rb2 {[%clk 0:00:17]}  e5 {[%clk 0:01:39]} 32. dxe5 {[%clk 0:00:12]}  Qxe5 {[%clk 0:01:39]} 33. Qb7 {[%clk 0:00:11]}  Bf5 {[%clk 0:01:15]} 34. Re1 {[%clk 0:00:08]}  Ng6 {[%clk 0:00:59]} 35. Qxd5 {[%clk 0:00:05]}  Qc7 {[%clk 0:00:32]} 36. Qxf5 {[%clk 0:00:03]}  Nxh4 {[%clk 0:00:24]} 37. Qd3 {[%clk 0:00:02]}  Rxf4 {[%clk 0:00:20]} 38. Nxf4 {[%clk 0:00:03]}  Qxf4 {[%clk 0:00:21]} 39. Ree2 {[%clk 0:00:02]}  Qh2+ {[%clk 0:00:20]} 40. Ke1 {[%clk 0:00:02]}  Qg1+ {[%clk 0:00:17]} 41. Kd2 {[%clk 0:00:03]}  Qc5 {[%clk 0:00:16]} 42. Kc2 {[%clk 0:00:04]}  Ng6 {[%clk 0:00:15]} 43. Kb1 {[%clk 0:00:04]}  Qxg5 {[%clk 0:00:15]} 44. Qe3 {[%clk 0:00:05]}  Qd5 {[%clk 0:00:14]} 45. Red2 {[%clk 0:00:04]}  Qc4 {[%clk 0:00:14]} 46. Rd4 {[%clk 0:00:04]}  Qf1+ {[%clk 0:00:13]} 47. Ka2 {[%clk 0:00:04]}  h4 {[%clk 0:00:14]} 48. Qd2 {[%clk 0:00:05]}  Qxf3 {[%clk 0:00:14]} 49. Rd8+ {[%clk 0:00:05]}  Rxd8 {[%clk 0:00:14]} 50. Qxd8+ {[%clk 0:00:06]}  Kh7 {[%clk 0:00:15]} 51. Qd4 {[%clk 0:00:06]}  Qf5 {[%clk 0:00:14]} 52. c4 {[%clk 0:00:07]}  f6 {[%clk 0:00:15]} 53. Qd5 {[%clk 0:00:07]}  Qxd5 {[%clk 0:00:13]} 54. cxd5 {[%clk 0:00:08]}  Ne5 {[%clk 0:00:14]} 55. d6 {[%clk 0:00:09]}  g5 {[%clk 0:00:14]} 56. Rd2 {[%clk 0:00:09]}  g4 {[%clk 0:00:14]} 57. d7 {[%clk 0:00:09]}  Nf7 {[%clk 0:00:15]} 58. d8=Q {[%clk 0:00:09]}  Nxd8 {[%clk 0:00:15]} 59. Rxd8 {[%clk 0:00:09]}  Kg6 {[%clk 0:00:13]} 60. Kb3 {[%clk 0:00:09]}  Kf5 {[%clk 0:00:13]} 61. Kc3 {[%clk 0:00:10]}  h3 {[%clk 0:00:13]} 62. Kd3 {[%clk 0:00:10]}  g3 {[%clk 0:00:13]} 63. Rd5+ {[%clk 0:00:08]}  Kg6 {[%clk 0:00:11]} 64. Rd8 {[%clk 0:00:07]}  h2 {[%clk 0:00:10]} 65. Rg8+ {[%clk 0:00:07]}  Kh7 {[%clk 0:00:08]} 66. Rxg3 {[%clk 0:00:07]}  h1=Q {[%clk 0:00:08]} 67. Kc4 {[%clk 0:00:07]}  Qe4+ {[%clk 0:00:08]} 68. Kb5 {[%clk 0:00:08]}  Qe5+ {[%clk 0:00:08]} 0-1


[Site "https://www.chess.com"]